{"text_format":"1","workbook":"xlsx","n_sheets":1,"sheets":["חדש"],"not_rendered":{"charts":0,"images":0,"macros":1,"external_links":0,"defined_names":0,"comments":0,"pivot_tables":0},"unopened":[],"bounds":{"document_bytes":16777216,"sheet_cells":100000,"rows_first":2000,"rows_last":500,"rows_between":2000,"halvings":0,"cell_chars":16384,"cell_head_chars":4096},"cells_cut":0,"cells_raw":0,"read":"whole","date_system":"1900"}

{"sheet":"חדש","index":0,"n_rows":99,"n_cols":10,"rows_kept":99,"cut":false,"hidden":false,"merged":[[0,11,1048575,16383],[1,9,2,10],[2,5,4,8],[5,5,1048575,8],[5,9,6,10],[7,9,8,10],[11,9,12,10],[13,9,14,10],[15,9,1048575,10],[3,9,4,10],[9,9,10,10],[0,5,1,8],[0,9,0,10]]}
["תאריך","שעת התחלה","שעת סיום","סה\"כ","לתשלום","שם הפרויקט:",null,null,null,"תעריף"]
[null,null,null,{"$f":"IF(C2=\"\",\"\",(SUM(C2-B2)))","v":""},{"$f":"IF(D2=\"\",\"\",SUM(D2*($J$2*24)))","v":""},null,null,null,null,125]
[null,null,null,{"$f":"IF(C3=\"\",\"\",(SUM(C3-B3)))","v":""},"","ירושלמי"]
[null,null,null,"","",null,null,null,null,"╠╣╠╣╠╣╠╣╠╣╠╣"]
[null,null,null,"",""]
[null,null,null,"","",null,null,null,null,"סה\"כ שעות"]
[null,null,null,"",""]
[null,null,null,"","",null,null,null,null,{"$f":"SUM(D2:D99)","v":0}]
[null,null,null,"",""]
[null,null,null,"","",null,null,null,null,"╠╣╠╣╠╣╠╣╠╣╠╣"]
[null,null,null,"",""]
[null,null,null,"","",null,null,null,null,"סה\"כ לתשלום"]
[null,null,null,"",""]
[null,null,null,"","",null,null,null,null,{"$f":"SUM(J8*(J2*24))","v":0}]
[null,null,null,"",""]
[null,null,null,"",""]
[null,null,null,"",""]
[null,null,null,"",""]
[null,null,null,"",""]
[null,null,null,"",""]
[null,null,null,"",""]
[null,null,null,"",""]
[null,null,null,"",""]
[null,null,null,"",""]
[null,null,null,"",""]
[null,null,null,"",""]
[null,null,null,"",""]
[null,null,null,"",""]
[null,null,null,"",""]
[null,null,null,"",""]
[null,null,null,"",""]
[null,null,null,"",""]
[null,null,null,"",""]
[null,null,null,"",""]
[null,null,null,"",""]
[null,null,null,"",""]
[null,null,null,"",""]
[null,null,null,"",""]
[null,null,null,"",""]
[null,null,null,"",""]
[null,null,null,"",""]
[null,null,null,"",""]
[null,null,null,"",""]
[null,null,null,"",""]
[null,null,null,"",""]
[null,null,null,"",""]
[null,null,null,"",""]
[null,null,null,"",""]
[null,null,null,"",""]
[null,null,null,"",""]
[null,null,null,"",""]
[null,null,null,"",""]
[null,null,null,"",""]
[null,null,null,"",""]
[null,null,null,"",""]
[null,null,null,"",""]
[null,null,null,"",""]
[null,null,null,"",""]
[null,null,null,"",""]
[null,null,null,"",""]
[null,null,null,"",""]
[null,null,null,"",""]
[null,null,null,"",""]
[null,null,null,"",""]
[null,null,null,"",""]
[null,null,null,"",{"$f":"IF(D66=\"\",\"\",SUM(D66*($J$2*24)))","v":""}]
[null,null,null,{"$f":"IF(C67=\"\",\"\",(SUM(C67-B67)))","v":""},""]
[null,null,null,"",""]
[null,null,null,"",""]
[null,null,null,"",""]
[null,null,null,"",""]
[null,null,null,"",""]
[null,null,null,"",""]
[null,null,null,"",""]
[null,null,null,"",""]
[null,null,null,"",""]
[null,null,null,"",""]
[null,null,null,"",""]
[null,null,null,"",""]
[null,null,null,"",""]
[null,null,null,"",""]
[null,null,null,"",""]
[null,null,null,"",""]
[null,null,null,"",""]
[null,null,null,"",""]
[null,null,null,"",""]
[null,null,null,"",""]
[null,null,null,"",""]
[null,null,null,"",""]
[null,null,null,"",""]
[null,null,null,"",""]
[null,null,null,"",""]
[null,null,null,"",""]
[null,null,null,"",""]
[null,null,null,"",""]
[null,null,null,"",""]
[null,null,null,"",""]
[null,null,null,"",""]
[null,null,null,"",""]